bitfinex/quotes_ETHUSD_20240618
["timestamp","ask_amount","ask_price","bid_price","bid_amount"]
[1718745013040,7.33317313,3463.9,3463.2,2.88747]
[1718745013256,7.33317313,3463.9,3462.4,0.05776419]
[1718745013257,3.0,3463.8,3463.3,2.88738]
[1718745013456,2.88625,3464.7,3463.2,2.8875]
[1718745013457,2.88687,3464.0,3463.2,2.8875]
[1718745013761,2.88687,3464.0,3463.4,2.88733]
[1718745013929,2.88674,3464.2,3463.4,2.88733]
[1718745014261,2.88676,3464.1,3463.5,2.88722]
[1718745015023,3.910197,3464.2,3463.7,2.88706]
[1718745015024,1.023457,3464.2,3463.7,2.88706]
[1718745015273,2.88629,3464.7,3463.7,2.88701]
[1718745015823,2.88642,3464.5,3463.9,2.88687]
[1718745016030,2.88633,3464.7,3464.0,2.88682]
[1718745016228,2.88633,3464.7,3464.1,2.88671]
[1718745016428,2.88648,3464.5,3463.9,2.88691]
[1718745016676,2.88648,3464.5,3464.0,2.88682]
[1718745016857,0.4783144,3464.7,3464.0,2.88682]
[1718745016858,2.88635,3464.6,3464.0,2.88682]
[1718745017058,3.0,3464.5,3464.0,2.88682]
[1718745017230,3.0,3464.5,3463.9,2.88691]
[1718745017431,3.0,3464.7,3463.9,3.657841]
[1718745017771,3.0,3464.7,3463.9,2.88691]
[1718745018366,3.0,3464.7,3463.9,2.8869]
[1718745018367,2.88636,3464.6,3463.9,2.8869]
[1718745018532,3.0,3464.7,3464.4,2.88647]
[1718745018732,3.321924,3464.9,3464.4,2.88647]
[1718745019049,3.0,3465.4,3463.6,6.8704]
[1718745019050,2.88581,3465.3,3463.6,6.8704]
[1718745019262,3.0,3465.2,3464.7,2.88622]
[1718745019601,5.88568,3465.4,3464.7,2.88622]
[1718745019735,3.0,3465.4,3464.9,2.88608]
[1718745019933,0.73467,3465.4,3464.9,2.88608]
[1718745020257,2.98455656,3466.0,3465.5,2.88558]
[1718745020469,3.0,3465.9,3465.5,2.88558]
[1718745020633,2.88493,3466.3,3465.3,2.88574]
[1718745020835,0.434613,3466.2,3465.3,2.88574]
[1718745021083,2.88508,3466.1,3465.4,2.88566]
[1718745021287,2.88508,3466.1,3465.2,2.88583]
[1718745021288,2.88527,3465.9,3465.2,2.88583]
[1718745021487,2.88527,3465.9,3465.3,2.88573]
[1718745021629,3.5057663,3465.9,3465.3,2.88573]
[1718745022071,2.88558,3465.5,3464.8,7.70855]
[1718745022269,2.886,3465.0,3464.4,4.8224]
[1718745022474,2.886,3465.0,3464.2,2.88666]
[1718745022659,2.88577,3465.3,3464.2,2.88666]
[1718745022944,2.886,3465.0,3464.3,2.8865]
[1718745023159,2.886,3465.0,3464.2,2.88666]
[1718745023476,2.88592,3465.1,3464.2,2.88666]
[1718745023849,2.88632,3464.7,3464.0,7.70922]
[1718745024071,2.88632,3464.7,3464.1,2.88674]
[1718745024467,2.88608,3464.9,3464.4,2.88648]
[1718745025349,2.88593,3465.1,3464.5,2.88637]
[1718745026082,2.88577,3465.3,3464.6,2.88631]
[1718745026632,2.88577,3465.3,3464.7,2.88618]
[1718745027258,0.0365563,3465.5,3465.4,8.65698]
[1718745027455,0.0365563,3465.5,3465.4,13.20208]
[1718745027672,0.0365563,3465.5,3465.4,16.08774]
[1718745028632,7.37,3467.1,3466.7,2.88451]
[1718745028835,2.88368,3467.8,3466.7,2.8845]
[1718745029072,3.05261,3467.4,3466.7,2.8845]
[1718745029574,3.05261,3467.4,3466.8,2.88449]
[1718745029778,2.88409,3467.3,3466.7,2.88457]
[1718745029970,3.05255,3467.4,3466.8,2.8845]
[1718745030144,0.762187,3467.3,3466.8,2.8845]
[1718745030345,0.762187,3467.3,3466.8,2.88448]
[1718745030576,0.762187,3467.3,3466.6,2.88458]
[1718745030795,0.762187,3467.3,3466.2,7.43009]
[1718745030948,2.88424,3467.2,3466.5,2.88468]
[1718745031643,3.0,3467.1,3466.6,2.88465]
[1718745032069,5.88427,3467.1,3466.5,2.8847]
[1718745032348,3.0,3467.1,3466.6,2.88466]
[1718745032655,5.88426,3467.1,3466.5,2.88474]
[1718745032855,2.88434,3467.0,3466.5,2.88474]
[1718745033388,5.88426,3467.1,3466.5,2.88474]
[1718745034079,2.8845,3466.8,3466.2,2.88495]
[1718745034273,2.8845,3466.8,3466.3,2.8849]
[1718745034476,6.761168,3467.1,3466.2,2.885]
[1718745034652,2.88435,3467.0,3466.4,2.88482]
[1718745035172,2.88442,3466.9,3466.3,2.88491]
[1718745035475,2.88434,3467.0,3466.5,2.88474]
[1718745035680,5.88426,3467.1,3466.0,2.88513]
[1718745035892,2.88426,3467.1,3466.1,0.84018744]
[1718745036048,2.88435,3467.0,3466.5,2.88474]
[1718745036374,2.88435,3467.0,3466.3,2.88484]
[1718745036585,2.88434,3467.0,3466.3,2.88484]
[1718745036966,2.88443,3466.9,3466.3,2.88484]
[1718745037139,1.975,3467.5,3466.8,2.88447]
[1718745037140,2.88392,3467.5,3466.8,2.88447]
[1718745037568,2.88392,3467.5,3466.8,2.88448]
[1718745037778,2.88394,3467.5,3466.9,2.88441]
[1718745037945,2.88401,3467.4,3466.9,2.88441]
[1718745038274,2.88417,3467.2,3466.6,2.88466]
[1718745038642,2.8841,3467.3,3466.6,2.88467]
[1718745038858,2.8841,3467.3,3466.8,2.8845]
[1718745039268,2.88401,3467.4,3466.9,2.88433]
[1718745039476,2.88401,3467.4,3466.6,2.88459]
[1718745039477,2.8841,3467.3,3466.8,2.88448]
[1718745039665,2.88401,3467.4,3466.6,2.88459]
[1718745039853,2.88419,3467.2,3466.6,2.88459]
[1718745040053,2.88401,3467.4,3466.6,2.88459]
[1718745040475,2.88401,3467.4,3466.8,2.88449]
[1718745040853,2.88392,3467.5,3466.3,4.8357]
[1718745040854,0.760567,3467.7,3466.9,2.8844]
[1718745041063,2.88401,3467.4,3466.9,2.88435]
[1718745041248,2.88409,3467.3,3466.6,2.88467]
[1718745041444,3.0,3467.8,3467.1,2.88425]
[1718745041704,14.102,3468.6,3467.5,2.88391]
[1718745041705,2.88326,3468.3,3467.5,2.88391]
[1718745041852,1.722,3468.6,3467.6,2.88381]
[1718745041853,2.8834,3468.2,3467.6,2.88381]
[1718745042186,2.8834,3468.2,3467.7,2.88373]
[1718745042563,2.88307,3468.6,3467.6,7.67271]
[1718745042875,2.88307,3468.6,3468.0,2.88349]
[1718745043199,3.17243,3468.9,3467.6,7.67272]
[1718745043200,2.88331,3468.3,3467.6,7.67272]
[1718745043353,3.0,3468.5,3467.6,4.7889]
[1718745043354,0.588331,3468.2,3467.6,4.7889]
[1718745043554,2.88299,3468.7,3467.7,2.88374]
[1718745043860,2.88301,3468.6,3468.0,2.88344]
[1718745044113,2.8834,3468.2,3467.6,7.67272]
[1718745044255,2.88327,3468.3,3467.7,2.88374]
[1718745044904,2.88317,3468.4,3467.7,2.88374]
[1718745045252,2.88317,3468.4,3467.8,2.88361]
[1718745045767,3.8087754,3468.4,3467.8,2.88361]
[1718745045973,0.9256054,3468.4,3467.7,2.88374]
[1718745046190,0.9256054,3468.4,3467.6,2.88383]
[1718745046375,2.88339,3468.2,3467.6,2.88383]
[1718745047217,2.88339,3468.2,3467.5,2.88391]
[1718745047426,2.88347,3468.1,3467.5,2.88391]
[1718745047630,2.88351,3468.0,3467.2,4.7719]
[1718745047814,2.88376,3467.7,3467.2,7.65605]
[1718745048426,2.88369,3467.8,3467.2,7.65605]
[1718745048619,2.88383,3467.6,3467.2,4.7719]
[1718745049320,2.88401,3467.4,3466.8,2.88448]
[1718745049518,2.88401,3467.4,3466.9,2.88442]
[1718745049724,2.88398,3467.5,3466.9,2.88441]
[1718745050725,2.88401,3467.4,3466.9,2.88441]
[1718745051230,2.88401,3467.4,3466.8,2.88448]
[1718745051440,2.88401,3467.4,3466.5,2.8847]
[1718745051441,2.88417,3467.2,3466.5,2.8847]
[1718745052134,2.88434,3467.0,3466.5,2.8847]
[1718745052321,2.88409,3467.3,3466.5,2.88468]
[1718745052530,2.88426,3467.1,3466.6,2.88464]
[1718745052694,3.0,3467.9,3466.5,2.88473]
[1718745052695,2.88434,3467.0,3466.5,2.88473]
[1718745052899,2.88409,3467.3,3466.6,2.88464]
[1718745053115,2.88419,3467.2,3466.7,0.66493505]
[1718745053400,2.8844,3467.0,3466.3,4.759]
[1718745053834,2.8844,3467.0,3466.5,2.88472]
[1718745054429,2.88442,3466.9,3466.3,7.6439]
[1718745055139,2.88442,3466.9,3466.3,4.759]
[1718745055334,2.88448,3466.9,3466.3,7.6439]
[1718745056113,2.88453,3466.8,3466.3,7.6439]
[1718745056429,2.88453,3466.8,3466.3,4.759]
[1718745056596,2.88456,3466.8,3466.3,4.759]
[1718745057025,2.88456,3466.8,3466.3,7.64391]
[1718745057228,2.88442,3466.9,3466.4,2.8848]
[1718745057435,2.88442,3466.9,3466.3,8.73398217]
[1718745057938,2.88452,3466.8,3466.3,8.73398217]
[1718745058130,2.88435,3467.0,3466.3,7.64383]
[1718745058338,2.88368,3467.8,3466.5,4.6308]
[1718745058627,2.88336,3468.2,3467.6,2.88383]
[1718745058800,5.88318,3468.4,3467.7,2.88375]
[1718745058996,5.88318,3468.4,3467.3,7.51486]
[1718745058997,2.88359,3467.9,3467.3,7.51486]
[1718745059239,2.88362,3467.9,3467.3,8.554761]
[1718745059619,2.88362,3467.9,3467.4,2.88399]
[1718745060032,2.88368,3467.8,3467.3,5.670701]
[1718745060199,2.88361,3467.9,3467.4,2.88399]
[1718745060399,2.88344,3468.1,3467.4,2.88399]
[1718745060621,2.8835,3468.0,3467.3,1.039901]
[1718745060826,2.8835,3468.0,3467.3,2.88402]
[1718745061011,2.8835,3468.0,3467.4,2.88397]
[1718745061204,3.0,3468.4,3467.5,2.88388]
[1718745061205,5.88319,3468.4,3467.5,2.88388]
[1718745061405,3.0,3468.4,3467.7,2.88368]
[1718745061604,2.88331,3468.3,3467.7,2.88368]
[1718745061819,3.0,3468.2,3467.7,2.88368]
[1718745062054,2.88318,3468.4,3467.8,2.8836]
[1718745062221,2.88327,3468.3,3467.8,2.8836]
[1718745062422,2.88318,3468.4,3467.5,2.88384]
[1718745062423,2.88343,3468.1,3467.5,2.88384]
[1718745062656,2.88318,3468.4,3467.5,3.460636]
[1718745062815,2.88318,3468.4,3467.7,2.88375]
[1718745063017,2.88327,3468.3,3467.8,2.88365]
[1718745063338,2.88327,3468.3,3467.7,2.88375]
[1718745063561,2.88327,3468.3,3467.6,2.88382]
[1718745063769,2.88335,3468.2,3467.6,2.88382]
[1718745064067,2.88318,3468.4,3467.6,2.88382]
[1718745064262,2.88327,3468.3,3467.8,2.88367]
[1718745064561,2.88317,3468.4,3467.9,2.88356]
[1718745064775,4.825944,3468.7,3466.9,5.22215486]
[1718745064776,5.88292,3468.7,3468.0,2.88343]
[1718745064922,5.88292,3468.7,3468.2,2.88333]
[1718745064923,2.88292,3468.7,3468.2,2.88333]
[1718745065264,2.88281,3468.9,3468.3,2.88324]
[1718745065467,2.8829,3468.8,3468.2,2.88332]
[1718745066989,4.5087,3469.1,3468.4,2.88316]
[1718745066990,2.88275,3469.0,3468.4,2.88316]
[1718745067194,7.39129,3469.1,3468.4,2.88316]
[1718745067195,3.0,3468.9,3468.4,2.88316]
[1718745067406,7.68089,3469.1,3468.5,2.88307]
[1718745067407,3.910064,3469.0,3468.5,2.88307]
[1718745067611,3.0,3468.9,3468.3,2.88318]
[1718745068274,3.0,3468.9,3468.4,2.88313]
[1718745068480,2.88201,3469.8,3468.8,2.88279]
[1718745068717,1.5087,3470.0,3468.4,4.9088]
[1718745068912,0.2896,3470.4,3468.4,4.9088]
[1718745068913,2.88169,3470.2,3469.2,2.8825]
[1718745069127,2.88169,3470.2,3469.6,2.88209]
[1718745069291,2.88169,3470.2,3469.2,2.8825]
[1718745069292,1.5087,3470.4,3469.5,2.88225]
[1718745069474,1.5087,3470.4,3469.2,2.8825]
[1718745069475,0.5545148,3470.3,3469.2,2.8825]
[1718745069679,0.5545148,3470.3,3469.3,0.057644]
[1718745069909,4.036448,3470.6,3470.0,2.88182]
[1718745070107,4.036448,3470.6,3470.0,2.88179]
[1718745070108,0.02800008,3470.5,3470.0,2.88179]
[1718745070410,0.02800008,3470.5,3469.1,6.6468]
[1718745070411,0.144,3470.0,3469.5,2.88219]
[1718745070709,0.01355016,3470.0,3469.9,5.76384]
[1718745071078,0.01355016,3470.0,3469.8,2.88199]
[1718745071313,0.01355016,3470.0,3469.2,2.63935486]
[1718745071314,0.01355016,3470.0,3469.3,2.88238]
[1718745071510,0.01355016,3470.0,3469.9,2.88192]
[1718745071714,0.01355016,3470.0,3469.2,2.048]
[1718745071715,0.01355016,3470.0,3469.8,2.882]
[1718745071923,0.01355016,3470.0,3469.1,4.9088]
[1718745071924,2.89540016,3470.0,3469.1,4.9088]
[1718745072111,0.3175401,3469.9,3469.0,2.8826]
[1718745072312,0.3175401,3469.9,3469.5,2.88225]
[1718745072619,0.3175401,3469.9,3469.0,2.8826]
[1718745072620,0.3175401,3469.9,3469.3,2.88237]
[1718745072796,0.3175401,3469.9,3469.2,2.8825]
[1718745072797,2.88202,3469.8,3469.2,2.8825]
[1718745072998,0.02800008,3469.7,3468.7,4.9088]
[1718745073198,2.8825,3469.3,3468.7,2.88289]
[1718745073421,0.02800008,3469.2,3468.7,2.88289]
[1718745073810,2.8825,3469.3,3468.8,2.88283]
[1718745074011,2.88203,3469.8,3468.9,2.88273]
[1718745074212,0.31851202,3469.7,3469.0,2.88267]
[1718745074413,0.02800008,3469.8,3469.2,2.8825]
[1718745074723,0.02800008,3469.8,3469.4,2.88234]
[1718745074927,0.02800008,3469.8,3468.5,0.5773772]
[1718745074928,2.88225,3469.5,3468.7,2.88292]
[1718745075136,2.88243,3469.3,3468.7,2.88292]
[1718745075346,0.28954002,3469.9,3468.5,2.88308]
[1718745075347,2.88225,3469.6,3468.8,2.88282]
[1718745075494,2.88234,3469.4,3468.8,2.88282]
[1718745075695,0.02800008,3469.3,3468.8,2.88282]
[1718745075892,0.02800008,3469.3,3468.3,4.9088]
[1718745076197,2.88259,3469.1,3468.3,4.9088]
[1718745076414,2.88277,3468.9,3468.3,4.9088]
[1718745076613,1.5087,3469.5,3468.0,2.88349]
[1718745076614,2.88292,3468.7,3468.0,2.88349]
[1718745076819,1.5087,3469.5,3468.1,2.88341]
[1718745076820,2.88303,3468.6,3468.1,2.88341]
[1718745077017,2.88303,3468.6,3468.0,2.88349]
[1718745077223,2.88303,3468.6,3468.1,1.067579]
[1718745077531,2.88261,3469.1,3468.5,2.88301]
[1718745077705,2.91068008,3469.0,3468.3,2.88318]
[1718745077905,0.02800008,3469.0,3468.4,2.88317]
[1718745078097,3.02800008,3469.3,3468.4,2.88317]
[1718745078297,3.02800008,3469.3,3468.2,4.9088]
[1718745078298,2.88282,3468.9,3468.2,4.9088]
[1718745078503,2.88282,3468.9,3468.3,2.88323]
[1718745078705,2.88286,3468.8,3468.3,2.88323]
[1718745078929,2.883,3468.6,3468.2,4.9088]
[1718745079129,2.88277,3468.9,3468.2,4.9088]
[1718745079432,2.91077008,3468.9,3468.4,2.88314]
[1718745079611,2.88293,3468.7,3468.2,4.9088]
[1718745080135,2.88285,3468.8,3468.2,7.79211]
[1718745080339,2.88285,3468.8,3468.3,2.88325]
[1718745080662,2.88292,3468.7,3468.2,7.79213]
[1718745080944,0.7679417,3469.2,3468.4,2.88316]
[1718745081227,5.88246,3469.3,3468.8,2.88282]
[1718745081429,5.88246,3469.3,3468.7,2.88291]
[1718745082054,2.88266,3469.1,3468.5,2.88308]
[1718745082252,5.8825,3469.3,3468.7,2.88285]
[1718745082565,3.199276,3469.7,3467.8,1.738]
[1718745082566,2.88152,3470.4,3469.4,2.88227]
[1718745082855,2.88114,3470.9,3469.4,4.9303]
[1718745083152,3.91587008,3470.8,3470.1,2.88172]
[1718745083308,2.88134,3470.6,3470.1,2.88174]
[1718745083515,2.88134,3470.6,3469.9,2.88186]
[1718745083735,2.88126,3470.7,3469.8,2.882]
[1718745083938,3.51444808,3470.7,3469.8,2.882]
[1718745084100,0.63318808,3470.7,3469.4,0.576485]
[1718745084307,2.8816,3470.3,3469.4,0.576485]
[1718745084505,2.8816,3470.3,3469.8,2.882]
[1718745085116,2.88201,3469.8,3469.2,4.6632]
[1718745085322,1.5344,3470.5,3469.3,2.88241]
[1718745085323,2.88193,3469.9,3469.3,2.88241]
[1718745085520,2.88201,3469.8,3469.2,7.54569]
[1718745085711,2.88209,3469.7,3469.2,7.54569]
[1718745086624,2.88218,3469.6,3469.0,2.88266]
[1718745086816,2.88218,3469.6,3468.9,2.88274]
[1718745086817,2.88233,3469.5,3468.9,2.88274]
[1718745087020,2.8824,3469.4,3468.8,2.88282]
[1718745087208,2.88192,3470.0,3468.8,1.319876]
[1718745087409,2.90992008,3469.9,3469.2,2.88243]
[1718745087643,0.02800008,3469.9,3469.4,2.88227]
[1718745088544,2.90993008,3469.9,3469.4,2.88227]
[1718745088713,0.02800008,3469.9,3469.4,2.88232]
[1718745088915,0.02800008,3469.9,3469.5,2.88222]
[1718745090257,0.02800008,3469.9,3469.1,2.88256]
[1718745090418,2.88207,3469.8,3469.3,2.8824]
[1718745091028,2.88175,3470.2,3469.6,2.88217]
[1718745091349,5.88169,3470.2,3469.7,2.88204]
[1718745091741,2.88176,3470.1,3469.6,2.88216]
[1718745091942,3.758094,3470.1,3469.6,2.88216]
[1718745092335,2.88184,3470.0,3469.5,2.88224]
[1718745092662,3.758114,3470.1,3469.5,2.88224]
[1718745092819,2.88186,3470.0,3469.5,2.88224]
[1718745093020,2.88233,3469.5,3468.7,4.5499]
[1718745093220,2.88202,3469.8,3468.8,2.88282]
[1718745093467,0.02800008,3469.7,3468.9,2.88275]
[1718745093756,2.88224,3469.6,3469.0,2.88261]
[1718745093916,2.91027008,3469.5,3469.0,2.88261]
[1718745094656,2.91027008,3469.5,3468.8,2.88282]
[1718745094845,2.91027008,3469.5,3468.3,5.3902363]
[1718745094846,2.88252,3469.2,3468.3,5.3902363]
[1718745095023,2.88227,3469.5,3468.9,2.88274]
[1718745095358,0.02800008,3469.4,3468.9,2.88274]
[1718745095525,0.90724509,3469.4,3468.9,2.88274]
[1718745095720,5.88227,3469.5,3468.9,2.88269]
[1718745095927,2.88227,3469.5,3468.9,2.88269]
[1718745096458,1.5344,3469.9,3468.7,2.88291]
[1718745096459,2.88249,3469.3,3468.7,2.88291]
[1718745096752,2.88252,3469.2,3468.7,2.88291]
[1718745096955,2.91052008,3469.2,3468.7,2.88291]
[1718745097155,2.88226,3469.5,3468.8,2.88284]
[1718745097341,2.88226,3469.5,3468.5,3.71034163]
[1718745097342,2.91026008,3469.5,3468.5,3.71034163]
[1718745097518,2.88258,3469.2,3468.7,2.8829]
[1718745097723,2.88226,3469.5,3468.5,2.88308]
[1718745098021,2.88226,3469.5,3468.3,5.3902363]
[1718745098022,13.83344,3471.0,3469.7,2.88208]
[1718745098223,13.83344,3471.0,3469.9,2.88192]
[1718745098224,2.88144,3470.5,3469.9,2.88192]
[1718745098425,2.88144,3470.5,3469.7,2.88208]
[1718745098426,2.88144,3470.5,3469.8,2.88199]
[1718745098633,2.88151,3470.4,3469.8,2.88199]
[1718745098845,2.90960008,3470.3,3469.5,2.88221]
[1718745099033,0.02800008,3470.3,3469.3,2.8824]
[1718745099548,2.88168,3470.2,3469.6,2.88211]
[1718745099749,2.88168,3470.2,3469.7,2.88207]
[1718745099961,2.88168,3470.2,3469.6,2.88211]
[1718745100125,2.88161,3470.3,3469.8,2.88199]
[1718745100455,2.88161,3470.3,3469.7,2.88207]
[1718745100862,0.02800008,3470.2,3469.3,3.17059]
[1718745101031,0.34777349,3470.2,3469.6,2.88212]
[1718745101455,3.22951349,3470.2,3469.7,2.88206]
[1718745101644,2.90974008,3470.2,3469.6,2.88217]
[1718745102048,2.88177,3470.1,3469.3,3.17059]
[1718745102229,2.88169,3470.2,3469.6,2.88211]
[1718745103263,2.88169,3470.2,3469.7,2.88209]
[1718745103856,2.8818,3470.1,3469.5,2.88225]
[1718745104342,2.8818,3470.1,3469.6,2.88214]
[1718745104943,68.33,3470.2,3469.8,2.882]
[1718745105364,68.33,3470.2,3469.9,2.88185]
[1718745105524,68.33,3470.2,3469.9,2.88186]
[1718745106257,68.33,3470.2,3469.9,2.88191]
[1718745106466,68.33,3470.2,3470.1,2.88176]
[1718745106647,68.33,3470.2,3470.0,2.88182]
[1718745106874,68.33,3470.2,3470.0,2.88184]
[1718745107880,68.33,3470.2,3470.1,2.88176]
[1718745108181,68.33,3470.2,3469.9,2.88192]
[1718745108380,68.33,3470.2,3470.0,2.88184]
[1718745108758,68.33,3470.2,3469.8,2.88199]
[1718745109276,68.33,3470.2,3469.9,2.88191]
[1718745110692,68.33,3470.2,3469.6,2.88216]
[1718745111476,68.33,3470.2,3469.8,2.882]
[1718745114286,68.33,3470.2,3469.9,2.88185]
[1718745114583,68.33,3470.2,3469.7,2.88208]
[1718745114584,68.33,3470.2,3469.8,2.88199]
[1718745115225,68.33,3470.2,3469.7,2.88206]
[1718745115909,71.21168,3470.2,3469.7,2.88206]
[1718745116108,2.88195,3469.9,3469.3,2.88234]
[1718745116401,2.8819,3470.0,3469.3,2.88242]
[1718745116558,73.8770569,3470.2,3469.2,2.88248]
[1718745116559,2.88201,3469.8,3469.2,2.88248]
[1718745116758,2.88201,3469.8,3469.3,2.88241]
[1718745117195,2.88209,3469.7,3469.2,2.88248]
[1718745118259,0.576402,3469.7,3468.1,2.91]
[1718745118471,0.576402,3469.7,3467.9,4.6604]
[1718745118472,2.88308,3468.6,3467.9,4.6604]
[1718745118776,2.88308,3468.6,3467.8,2.85924953]
[1718745118777,2.91109008,3468.5,3467.8,2.85924953]
[1718745118978,0.02800008,3468.5,3467.8,2.85924953]
[1718745119291,2.88317,3468.4,3467.9,0.28592495]
[1718745119656,2.88288,3468.8,3467.9,0.28592495]
[1718745120007,2.88302,3468.6,3468.0,2.91065312]
[1718745120209,2.88309,3468.5,3468.1,0.89393676]
[1718745120507,2.88302,3468.6,3468.1,0.89393676]
[1718745120674,2.88302,3468.6,3468.2,0.40633517]
[1718745121504,5.76593,3468.7,3468.2,0.40633517]
[1718745121671,2.88294,3468.7,3468.2,0.40633517]
[1718745121907,2.88302,3468.6,3468.2,0.40633517]
[1718745122223,2.88308,3468.6,3468.2,0.40633517]
[1718745122796,2.88292,3468.7,3468.2,0.40633517]
[1718745123081,2.88309,3468.5,3468.1,0.89393676]
[1718745123282,2.88317,3468.4,3467.9,3.16948495]
[1718745123500,2.88317,3468.4,3467.9,3.16950495]
[1718745123709,2.88336,3468.2,3467.9,0.28592495]
[1718745123906,2.88336,3468.2,3467.8,2.85924953]
[1718745124484,2.88369,3467.8,3467.3,2.88408]
[1718745124685,2.88359,3467.9,3467.3,2.88408]
[1718745125299,2.88336,3468.2,3467.6,2.88382]
[1718745125300,2.88341,3468.2,3467.6,2.88382]
[1718745125590,2.8836,3467.9,3467.4,2.88399]
[1718745125796,3.17237,3468.9,3467.3,1.052844]
[1718745126026,2.0966379,3468.7,3468.1,2.88338]
[1718745126225,2.09644444,3468.8,3467.8,4.4958]
[1718745126425,4.97894345,3469.1,3468.1,2.88342]
[1718745126724,5.88229,3469.5,3468.4,2.8831]
[1718745126902,2.12415527,3469.3,3468.5,2.88308]
[1718745127102,0.49908457,3469.9,3468.0,6.2338]
[1718745127305,2.88225,3469.6,3469.0,2.88266]
[1718745127849,2.91019008,3469.6,3468.9,2.88271]
[1718745128128,2.91019008,3469.6,3469.0,2.88265]
[1718745128129,2.88226,3469.5,3469.0,2.88265]
[1718745128424,0.02800008,3469.6,3469.0,2.88265]
[1718745128425,2.88218,3469.6,3469.0,2.88265]
[1718745128595,2.88218,3469.6,3469.1,2.88256]
[1718745128794,0.49908457,3469.9,3469.8,2.88201]
[1718745129026,68.08,3470.2,3469.8,3.170211]
[1718745129344,68.08,3470.2,3469.9,2.88191]
[1718745129529,68.08,3470.2,3470.0,2.88183]
[1718745129716,68.08,3470.2,3470.0,2.88177]
[1718745130431,68.08,3470.2,3470.1,2.88176]
[1718745130612,68.08,3470.2,3470.1,6.3686991]
[1718745132537,68.08,3470.2,3470.1,9.2504591]
[1718745133748,68.08,3470.2,3470.1,12.6822191]
[1718745134349,68.08,3470.2,3470.1,15.6822191]
[1718745134506,68.08,3470.2,3470.1,22.0412191]
[1718745134702,63.1345,3470.2,3470.1,24.9229791]
[1718745135555,63.1345,3470.2,3470.1,22.0412191]
[1718745135835,62.53314131,3470.2,3470.1,24.9229791]
[1718745136438,62.53314131,3470.2,3470.1,22.0412191]
[1718745136806,41.60855635,3470.2,3470.1,27.8047391]
[1718745137007,40.53954119,3470.2,3470.1,24.9229791]
[1718745137449,36.21702119,3470.2,3470.1,27.8047391]
[1718745137620,34.77618119,3470.2,3470.1,24.9229791]
[1718745138067,34.77618119,3470.2,3470.1,27.8047391]
[1718745138216,26.35275696,3470.2,3470.1,27.8047391]
[1718745138409,18.84193696,3470.2,3470.1,27.8047391]
[1718745139043,18.84193696,3470.2,3470.1,28.5547391]
[1718745139247,16.17318137,3470.2,3470.1,28.5547391]
[1718745139537,16.17318137,3470.2,3470.1,27.19956]
[1718745139538,0.02612464,3470.2,3470.1,27.19956]
[1718745139739,0.02800008,3472.4,3472.0,2.88018]
[1718745140049,0.1185283,3472.7,3471.4,2.88066]
[1718745140233,0.02800008,3472.6,3472.0,2.88013]
[1718745140536,2.90770008,3472.6,3472.1,2.88009]
[1718745140755,3.68600692,3472.6,3472.1,2.88009]
[1718745141047,0.80630692,3472.6,3471.9,2.88026]
[1718745141254,2.87994,3472.3,3471.7,2.88039]
[1718745141422,0.02800008,3472.2,3471.7,2.88039]
[1718745141618,0.02800008,3472.2,3471.8,2.88032]
[1718745142155,0.02800008,3472.2,3471.7,2.8804]
[1718745142351,0.02800008,3472.2,3471.8,2.88033]
[1718745142532,0.02800008,3472.2,3471.9,2.88019]
[1718745142533,0.74715601,3472.2,3471.9,2.88019]
[1718745143252,0.02800008,3472.1,3471.6,2.88043]
[1718745143554,0.77515609,3472.2,3471.8,2.88033]
[1718745143739,0.82188161,3472.1,3471.8,2.88033]
[1718745144252,0.82188161,3472.1,3471.7,2.88039]
[1718745144432,4.5637,3472.4,3471.8,0.05706313]
[1718745144633,4.5637,3472.4,3472.3,2.87993]
[1718745144844,4.5637,3472.4,3471.8,2.88027]
[1718745144845,2.87995,3472.3,3471.8,2.88027]
[1718745145046,0.02800008,3472.2,3471.8,2.88027]
[1718745145250,0.48437008,3472.3,3471.8,2.88027]
[1718745145423,0.02800008,3472.2,3471.8,2.88027]
[1718745145759,0.02800008,3472.2,3470.9,2.88109]
[1718745146052,0.02800008,3472.2,3470.1,7.62188013]
[1718745146053,4.5637,3471.5,3471.0,2.88099]
[1718745146252,0.02800008,3471.4,3470.9,2.88109]
[1718745146446,0.02800008,3471.4,3470.8,2.88114]
[1718745146755,4.5637,3471.5,3471.2,2.88084]
[1718745147056,4.5637,3471.9,3471.5,2.88056]
[1718745147234,5.139731,3471.9,3471.7,2.88037]
[1718745147731,5.139731,3471.9,3471.6,2.88049]
[1718745147937,5.139731,3471.9,3471.8,2.88035]
[1718745148256,4.5637,3471.9,3471.8,2.88035]
[1718745148557,2.87986,3472.4,3471.8,2.88033]
[1718745148759,0.1185283,3472.7,3471.6,2.88047]
[1718745148760,6.8969283,3472.7,3471.6,2.88047]
[1718745148976,0.97763883,3472.6,3472.2,2.87995]
[1718745149253,2.87985,3472.5,3471.8,2.88034]
[1718745149457,1.1062418,3472.4,3471.8,2.88034]
[1718745150250,1.1062418,3472.4,3472.0,2.8801]
[1718745150936,1.07824172,3472.4,3472.1,2.88006]
[1718745151254,1.07824172,3472.4,3471.8,2.88034]
[1718745151457,1.07824172,3472.4,3470.9,1.738]
[1718745151458,6.8096,3472.1,3470.9,2.88105]
[1718745151659,2.88033,3471.9,3471.2,2.88084]
[1718745151863,0.02800008,3471.8,3471.2,2.88084]
[1718745152964,0.02800008,3471.8,3471.4,2.88066]